[Event "*** SCC Grand Prix: Titled Tuesday Blitz"]
[Site "Chess.com"]
[Date "2020.08.11"]
[Round "5"]
[White "Carnivoras"]
[Black "Bigfish1995"]
[Result "0-1"]
[WhiteElo "2651"]
[BlackElo "2969"]
[TimeControl "180+1"]
[EndTime "10:55:29 PDT"]
[Termination "Bigfish1995 won by resignation"]

1. d4 {[%clk 0:03:00.9]} 1... f5 {[%clk 0:02:58.2]} 2. Nf3 {[%clk 0:03:00.1]}
2... Nf6 {[%clk 0:02:58.3]} 3. Bf4 {[%clk 0:02:56.2]} 3... e6 {[%clk 0:02:54.8]}
4. e3 {[%clk 0:02:56.2]} 4... b6 {[%clk 0:02:54]} 5. Be2 {[%clk 0:02:55.2]} 5...
Bb7 {[%clk 0:02:54.1]} 6. h3 {[%clk 0:02:55.2]} 6... Be7 {[%clk 0:02:51.1]} 7.
O-O {[%clk 0:02:55.2]} 7... O-O {[%clk 0:02:51.2]} 8. Nbd2 {[%clk 0:02:55.5]}
8... h6 {[%clk 0:02:27.1]} 9. a4 {[%clk 0:02:51.8]} 9... g5 {[%clk 0:02:16]} 10.
Bh2 {[%clk 0:02:50]} 10... d6 {[%clk 0:02:16.3]} 11. a5 {[%clk 0:02:44.1]} 11...
Qe8 {[%clk 0:02:09.8]} 12. Ne1 {[%clk 0:02:37.8]} 12... Qg6 {[%clk 0:02:06.5]}
13. Bf3 {[%clk 0:02:32.1]} 13... Bxf3 {[%clk 0:01:24.7]} 14. Qxf3 {[%clk
0:02:26.3]} 14... Nbd7 {[%clk 0:01:24.7]} 15. axb6 {[%clk 0:02:24.4]} 15... cxb6
{[%clk 0:01:13.8]} 16. Nd3 {[%clk 0:02:21.8]} 16... Rfc8 {[%clk 0:01:11.1]} 17.
c3 {[%clk 0:02:11.8]} 17... a5 {[%clk 0:01:10.4]} 18. Qe2 {[%clk 0:02:09]} 18...
h5 {[%clk 0:01:05.6]} 19. Rfe1 {[%clk 0:02:06]} 19... d5 {[%clk 0:00:56.5]} 20.
Nf3 {[%clk 0:01:59.5]} 20... g4 {[%clk 0:00:51.9]} 21. Nfe5 {[%clk 0:01:59.4]}
21... Nxe5 {[%clk 0:00:50.2]} 22. Nxe5 {[%clk 0:01:58.7]} 22... Qg7 {[%clk
0:00:50.6]} 23. Kh1 {[%clk 0:01:56.3]} 23... Kh7 {[%clk 0:00:27.2]} 24. Bf4
{[%clk 0:01:48.4]} 24... Rg8 {[%clk 0:00:25.4]} 25. Rg1 {[%clk 0:01:44.2]} 25...
Bd6 {[%clk 0:00:25]} 26. Nd3 {[%clk 0:01:38.9]} 26... Qc7 {[%clk 0:00:23.7]} 27.
Bxd6 {[%clk 0:01:36.7]} 27... Qxd6 {[%clk 0:00:24.6]} 28. Ne5 {[%clk 0:01:37]}
28... Rg7 {[%clk 0:00:23.9]} 29. c4 {[%clk 0:00:56.3]} 29... dxc4 {[%clk
0:00:23.5]} 30. Qxc4 {[%clk 0:00:53.6]} 30... Rc7 {[%clk 0:00:23.2]} 31. Qe2
{[%clk 0:00:50.9]} 31... Rac8 {[%clk 0:00:23.3]} 32. Rgd1 {[%clk 0:00:38.8]}
32... Ne4 {[%clk 0:00:22.9]} 33. Qe1 {[%clk 0:00:29.5]} 33... Rc2 {[%clk
0:00:22.1]} 34. Nd3 {[%clk 0:00:29.1]} 34... gxh3 {[%clk 0:00:21]} 35. gxh3
{[%clk 0:00:29]} 35... Rg8 {[%clk 0:00:09.1]} 36. Rac1 {[%clk 0:00:24]} 36...
Nxf2+ {[%clk 0:00:09.1]} 37. Nxf2 {[%clk 0:00:18.8]} 37... Qg3 {[%clk
0:00:09.2]} 38. Qg1 {[%clk 0:00:19.3]} 38... Qf3+ {[%clk 0:00:09.5]} 39. Kh2
{[%clk 0:00:16.6]} 39... Rxf2+ {[%clk 0:00:09.5]} 0-1

[Event "*** SCC Grand Prix: Titled Tuesday Blitz"]
[Site "Chess.com"]
[Date "2020.08.11"]
[Round "5"]
[White "Angel_Hranitel_37"]
[Black "RobPeresian"]
[Result "1-0"]
[WhiteElo "2443"]
[BlackElo "2237"]
[TimeControl "180+1"]
[EndTime "10:55:30 PDT"]
[Termination "Angel_Hranitel_37 won by resignation"]

1. d4 {[%clk 0:03:00.9]} 1... Nf6 {[%clk 0:02:57.4]} 2. Nf3 {[%clk 0:02:59.5]}
2... e6 {[%clk 0:02:56]} 3. c4 {[%clk 0:02:59.1]} 3... d5 {[%clk 0:02:54.6]} 4.
g3 {[%clk 0:02:59.1]} 4... dxc4 {[%clk 0:02:51.5]} 5. Bg2 {[%clk 0:02:58.7]}
5... Nc6 {[%clk 0:02:50.8]} 6. O-O {[%clk 0:02:55.2]} 6... Rb8 {[%clk
0:02:49.1]} 7. Nc3 {[%clk 0:02:27.3]} 7... b5 {[%clk 0:02:43.3]} 8. Bg5 {[%clk
0:02:27.6]} 8... Be7 {[%clk 0:02:40.9]} 9. Ne5 {[%clk 0:01:59.6]} 9... Nxe5
{[%clk 0:02:30.6]} 10. dxe5 {[%clk 0:02:00.5]} 10... Nd7 {[%clk 0:02:29.9]} 11.
Be3 {[%clk 0:01:54.4]} 11... Bc5 {[%clk 0:02:13.6]} 12. Qd2 {[%clk 0:01:22.3]}
12... O-O {[%clk 0:02:00.9]} 13. Rfd1 {[%clk 0:01:21.4]} 13... Qe7 {[%clk
0:01:56.9]} 14. a4 {[%clk 0:01:14.6]} 14... a6 {[%clk 0:01:21.9]} 15. axb5
{[%clk 0:01:10.8]} 15... axb5 {[%clk 0:01:17.5]} 16. Ne4 {[%clk 0:01:11]} 16...
Bxe3 {[%clk 0:01:11.3]} 17. Qxe3 {[%clk 0:01:11.9]} 17... Bb7 {[%clk 0:01:09.6]}
18. Nf6+ {[%clk 0:00:24.8]} 18... Nxf6 {[%clk 0:01:05.3]} 19. exf6 {[%clk
0:00:24.1]} 19... Qxf6 {[%clk 0:01:04.7]} 20. Bxb7 {[%clk 0:00:19.1]} 20... Rxb7
{[%clk 0:01:02.9]} 21. Rd7 {[%clk 0:00:19.2]} 21... Qxb2 {[%clk 0:00:59.5]} 22.
Ra5 {[%clk 0:00:16.4]} 22... c3 {[%clk 0:00:56.8]} 23. Qc5 {[%clk 0:00:16.6]}
23... g6 {[%clk 0:00:45.8]} 24. Qe5 {[%clk 0:00:09.9]} 24... Qb1+ {[%clk
0:00:38.7]} 25. Kg2 {[%clk 0:00:08.2]} 25... c2 {[%clk 0:00:39.1]} 26. Rxf7
{[%clk 0:00:05.1]} 26... Rxf7 {[%clk 0:00:33.7]} 27. Ra8+ {[%clk 0:00:05.1]}
27... Rf8 {[%clk 0:00:34]} 28. Qxe6+ {[%clk 0:00:05.7]} 28... Kg7 {[%clk
0:00:33]} 29. Qe7+ {[%clk 0:00:06.1]} 29... Rf7 {[%clk 0:00:32.8]} 30. Qe5+
{[%clk 0:00:06.6]} 30... Kh6 {[%clk 0:00:31.3]} 31. Qe3+ {[%clk 0:00:05.1]}
31... g5 {[%clk 0:00:15.8]} 32. Qe6+ {[%clk 0:00:05]} 32... Kg7 {[%clk
0:00:15.8]} 33. Qe5+ {[%clk 0:00:05.3]} 33... Kg6 {[%clk 0:00:15.4]} 34. Rg8+
{[%clk 0:00:05.3]} 1-0

[Event "*** SCC Grand Prix: Titled Tuesday Blitz"]
[Site "Chess.com"]
[Date "2020.08.11"]
[Round "5"]
[White "XDPS"]
[Black "Oleksandr_Bortnyk"]
[Result "0-1"]
[WhiteElo "2653"]
[BlackElo "2978"]
[TimeControl "180+1"]
[EndTime "10:55:31 PDT"]
[Termination "Oleksandr_Bortnyk won on time"]

1. Nf3 {[%clk 0:03:00.9]} 1... Nf6 {[%clk 0:02:53.2]} 2. b3 {[%clk 0:03:00.3]}
2... d5 {[%clk 0:02:52.3]} 3. Bb2 {[%clk 0:03:00.5]} 3... Bf5 {[%clk 0:02:52]}
4. g3 {[%clk 0:03:00]} 4... h6 {[%clk 0:02:52.3]} 5. Bg2 {[%clk 0:03:00.4]} 5...
e6 {[%clk 0:02:52.7]} 6. O-O {[%clk 0:03:00.8]} 6... Be7 {[%clk 0:02:52.8]} 7.
d3 {[%clk 0:03:01.5]} 7... Bh7 {[%clk 0:02:51.3]} 8. Nbd2 {[%clk 0:03:01.8]}
8... O-O {[%clk 0:02:51.6]} 9. Ne5 {[%clk 0:02:59.2]} 9... c5 {[%clk 0:02:51.3]}
10. c4 {[%clk 0:02:52.2]} 10... Nc6 {[%clk 0:02:44.7]} 11. cxd5 {[%clk
0:02:51.1]} 11... exd5 {[%clk 0:02:44.2]} 12. Nxc6 {[%clk 0:02:45.7]} 12... bxc6
{[%clk 0:02:43.7]} 13. Rc1 {[%clk 0:02:46.4]} 13... Qa5 {[%clk 0:02:38.1]} 14.
a3 {[%clk 0:02:43.7]} 14... Rab8 {[%clk 0:02:34.7]} 15. Qc2 {[%clk 0:02:36.2]}
15... Rb7 {[%clk 0:02:21.3]} 16. Bc3 {[%clk 0:02:34.7]} 16... Qa6 {[%clk
0:02:15.8]} 17. Bxf6 {[%clk 0:01:44.1]} 17... gxf6 {[%clk 0:02:01.3]} 18. Qa2
{[%clk 0:01:20.8]} 18... Rfb8 {[%clk 0:01:58.4]} 19. Rfe1 {[%clk 0:01:20.2]}
19... c4 {[%clk 0:01:54.6]} 20. dxc4 {[%clk 0:01:18.6]} 20... Qxa3 {[%clk
0:01:54.4]} 21. Qxa3 {[%clk 0:01:09]} 21... Bxa3 {[%clk 0:01:55.3]} 22. cxd5
{[%clk 0:00:47.4]} 22... Bxc1 {[%clk 0:01:53]} 23. Rxc1 {[%clk 0:00:48.3]} 23...
cxd5 {[%clk 0:01:53]} 24. Bxd5 {[%clk 0:00:48.8]} 24... Rd7 {[%clk 0:01:48.7]}
25. e4 {[%clk 0:00:47.4]} 25... f5 {[%clk 0:01:43.8]} 26. f3 {[%clk 0:00:43.7]}
26... fxe4 {[%clk 0:01:43.5]} 27. fxe4 {[%clk 0:00:44.6]} 27... Kg7 {[%clk
0:01:42.3]} 28. Rc5 {[%clk 0:00:29.4]} 28... f5 {[%clk 0:01:25.9]} 29. exf5
{[%clk 0:00:29.6]} 29... Rbd8 {[%clk 0:01:24.3]} 30. f6+ {[%clk 0:00:20.4]}
30... Kxf6 {[%clk 0:00:56.3]} 31. Ne4+ {[%clk 0:00:19.8]} 31... Bxe4 {[%clk
0:00:43]} 32. Bxe4 {[%clk 0:00:20.7]} 32... Rd2 {[%clk 0:00:42.9]} 33. Rf5+
{[%clk 0:00:16.1]} 33... Ke6 {[%clk 0:00:39.6]} 34. Ra5 {[%clk 0:00:12.2]} 34...
Rb2 {[%clk 0:00:37.5]} 35. Bf3 {[%clk 0:00:05.9]} 35... Rdd2 {[%clk 0:00:34.9]}
36. Ra6+ {[%clk 0:00:01.9]} 36... Ke5 {[%clk 0:00:34.7]} 37. Ra1 {[%clk
0:00:02.8]} 37... Rxb3 {[%clk 0:00:35]} 38. Re1+ {[%clk 0:00:02.9]} 38... Kf5
{[%clk 0:00:35.1]} 39. Bg2 {[%clk 0:00:02.9]} 39... Rbb2 {[%clk 0:00:35.3]} 40.
Be4+ {[%clk 0:00:03.2]} 40... Kg4 {[%clk 0:00:35.2]} 41. Rf1 {[%clk 0:00:03.3]}
41... Rxh2 {[%clk 0:00:35.2]} 42. Rf4+ {[%clk 0:00:03.3]} 42... Kxg3 {[%clk
0:00:35.4]} 43. Rf3+ {[%clk 0:00:03.7]} 43... Kg4 {[%clk 0:00:36]} 44. Rf6
{[%clk 0:00:03.7]} 44... Rhd2 {[%clk 0:00:35.7]} 45. Rf1 {[%clk 0:00:01.9]}
45... a5 {[%clk 0:00:34.8]} 46. Bf5+ {[%clk 0:00:02.1]} 46... Kg5 {[%clk
0:00:35]} 47. Be4 {[%clk 0:00:03]} 47... a4 {[%clk 0:00:35.3]} 0-1

[Event "*** SCC Grand Prix: Titled Tuesday Blitz"]
[Site "Chess.com"]
[Date "2020.08.11"]
[Round "5"]
[White "chess_rehab"]
[Black "Casablanca"]
[Result "0-1"]
[WhiteElo "2294"]
[BlackElo "2452"]
[TimeControl "180+1"]
[EndTime "10:55:32 PDT"]
[Termination "Casablanca won by resignation"]

1. e4 {[%clk 0:03:00.9]} 1... c5 {[%clk 0:02:59.2]} 2. Nf3 {[%clk 0:03:00.6]}
2... d6 {[%clk 0:02:59]} 3. d4 {[%clk 0:03:01]} 3... cxd4 {[%clk 0:02:59.9]} 4.
Nxd4 {[%clk 0:03:01.4]} 4... Nf6 {[%clk 0:03:00.5]} 5. Nc3 {[%clk 0:03:01.5]}
5... g6 {[%clk 0:03:01]} 6. Be3 {[%clk 0:02:59.4]} 6... Bg7 {[%clk 0:03:00.9]}
7. f3 {[%clk 0:02:59.6]} 7... O-O {[%clk 0:03:01.3]} 8. Qd2 {[%clk 0:02:58.7]}
8... Nc6 {[%clk 0:03:02.2]} 9. O-O-O {[%clk 0:02:58.3]} 9... d5 {[%clk 0:03:02]}
10. Nxc6 {[%clk 0:02:58.1]} 10... bxc6 {[%clk 0:03:00.9]} 11. Bh6 {[%clk
0:02:58.1]} 11... Qc7 {[%clk 0:02:29.1]} 12. Bxg7 {[%clk 0:02:34]} 12... Kxg7
{[%clk 0:02:30]} 13. exd5 {[%clk 0:02:33.3]} 13... cxd5 {[%clk 0:02:24.9]} 14.
Nxd5 {[%clk 0:02:32.3]} 14... Nxd5 {[%clk 0:02:24.6]} 15. Qxd5 {[%clk
0:02:31.6]} 15... Be6 {[%clk 0:02:24.5]} 16. Qd4+ {[%clk 0:02:20]} 16... Kg8
{[%clk 0:02:23.3]} 17. Bd3 {[%clk 0:01:46.9]} 17... Bxa2 {[%clk 0:02:13.4]} 18.
h4 {[%clk 0:01:46.4]} 18... Rfd8 {[%clk 0:02:12]} 19. Qa4 {[%clk 0:01:36.7]}
19... Rac8 {[%clk 0:01:59.3]} 20. Qxa2 {[%clk 0:00:58.6]} 20... Rxd3 {[%clk
0:01:57.8]} 21. Qa4 {[%clk 0:00:58]} 21... Rxd1+ {[%clk 0:01:31.8]} 22. Rxd1
{[%clk 0:00:58.9]} 22... h5 {[%clk 0:01:16.9]} 23. g4 {[%clk 0:00:55.1]} 23...
hxg4 {[%clk 0:01:15.8]} 24. fxg4 {[%clk 0:00:55.7]} 24... Qc4 {[%clk 0:01:15.6]}
25. Qxc4 {[%clk 0:00:51.3]} 25... Rxc4 {[%clk 0:01:16.5]} 26. Rd7 {[%clk
0:00:50.5]} 26... a5 {[%clk 0:01:12.5]} 27. Rxe7 {[%clk 0:00:43.9]} 27... Rxg4
{[%clk 0:01:11.9]} 28. b3 {[%clk 0:00:38.3]} 28... Rxh4 {[%clk 0:01:10.8]} 29.
Ra7 {[%clk 0:00:37.2]} 29... Rh5 {[%clk 0:01:11.2]} 30. c4 {[%clk 0:00:37]}
30... Rf5 {[%clk 0:01:06.4]} 31. Rb7 {[%clk 0:00:31.7]} 31... Kf8 {[%clk
0:00:49.2]} 32. Kd2 {[%clk 0:00:26.5]} 32... g5 {[%clk 0:00:46.8]} 33. Ke3
{[%clk 0:00:16.8]} 33... f6 {[%clk 0:00:46.5]} 34. Ke4 {[%clk 0:00:12.5]} 34...
Re5+ {[%clk 0:00:46]} 35. Kd4 {[%clk 0:00:12.5]} 35... g4 {[%clk 0:00:46]} 36.
c5 {[%clk 0:00:13.1]} 36... g3 {[%clk 0:00:43.7]} 37. Rb6 {[%clk 0:00:08.7]}
37... Kf7 {[%clk 0:00:38.8]} 38. Rb7+ {[%clk 0:00:08.7]} 38... Kg6 {[%clk
0:00:39]} 39. Rb8 {[%clk 0:00:09.3]} 39... Rg5 {[%clk 0:00:32.8]} 40. c6 {[%clk
0:00:08.5]} 40... g2 {[%clk 0:00:32.4]} 41. Rg8+ {[%clk 0:00:07]} 41... Kf7
{[%clk 0:00:30.5]} 42. Rxg5 {[%clk 0:00:06.8]} 42... fxg5 {[%clk 0:00:30.7]} 43.
Kc5 {[%clk 0:00:05.9]} 43... g1=Q+ {[%clk 0:00:31.6]} 44. Kd6 {[%clk 0:00:06.2]}
44... Ke8 {[%clk 0:00:27.1]} 45. Kc7 {[%clk 0:00:06.1]} 45... Qa7+ {[%clk
0:00:26]} 46. Kd6 {[%clk 0:00:06.2]} 46... Kd8 {[%clk 0:00:25.3]} 0-1

[Event "*** SCC Grand Prix: Titled Tuesday Blitz"]
[Site "Chess.com"]
[Date "2020.08.11"]
[Round "5"]
[White "Leonid_Starozhilov"]
[Black "FMJoseHerrera"]
[Result "1-0"]
[WhiteElo "2706"]
[BlackElo "2515"]
[TimeControl "180+1"]
[EndTime "10:55:33 PDT"]
[Termination "Leonid_Starozhilov won on time"]

1. c4 {[%clk 0:03:00.9]} 1... Nf6 {[%clk 0:02:59.9]} 2. Nf3 {[%clk 0:02:59.4]}
2... g6 {[%clk 0:02:59.9]} 3. g3 {[%clk 0:02:58.5]} 3... d6 {[%clk 0:02:59.6]}
4. Bg2 {[%clk 0:02:59]} 4... Nc6 {[%clk 0:02:59.2]} 5. O-O {[%clk 0:02:59.3]}
5... Bg7 {[%clk 0:02:58.8]} 6. Nc3 {[%clk 0:02:58.7]} 6... h5 {[%clk 0:02:58.9]}
7. h4 {[%clk 0:02:55.6]} 7... Bg4 {[%clk 0:02:58.1]} 8. d3 {[%clk 0:02:54.9]}
8... Qd7 {[%clk 0:02:57.6]} 9. Bg5 {[%clk 0:02:49.7]} 9... Bh3 {[%clk
0:02:57.4]} 10. Rb1 {[%clk 0:02:41.6]} 10... Bxg2 {[%clk 0:02:55.9]} 11. Kxg2
{[%clk 0:02:42.5]} 11... O-O {[%clk 0:02:54.2]} 12. Bxf6 {[%clk 0:02:41]} 12...
Bxf6 {[%clk 0:02:53.2]} 13. Ne4 {[%clk 0:02:38.5]} 13... Bg7 {[%clk 0:02:53.2]}
14. b4 {[%clk 0:02:35.7]} 14... f5 {[%clk 0:02:47.9]} 15. Neg5 {[%clk
0:02:33.7]} 15... e5 {[%clk 0:02:46.4]} 16. Qb3 {[%clk 0:02:12.9]} 16... Nd8
{[%clk 0:02:44.6]} 17. c5+ {[%clk 0:02:09.2]} 17... d5 {[%clk 0:02:35.9]} 18. e4
{[%clk 0:02:09.1]} 18... c6 {[%clk 0:02:32.2]} 19. Rfe1 {[%clk 0:02:00.4]} 19...
Re8 {[%clk 0:02:11.4]} 20. b5 {[%clk 0:01:32.8]} 20... Kh8 {[%clk 0:01:29.1]}
21. a4 {[%clk 0:01:32.5]} 21... d4 {[%clk 0:01:22.1]} 22. bxc6 {[%clk
0:01:23.6]} 22... bxc6 {[%clk 0:01:21.8]} 23. Qc4 {[%clk 0:01:17.1]} 23... f4
{[%clk 0:01:17.9]} 24. a5 {[%clk 0:01:01.8]} 24... Rf8 {[%clk 0:01:16.3]} 25. a6
{[%clk 0:00:56]} 25... fxg3 {[%clk 0:01:04.5]} 26. fxg3 {[%clk 0:00:56.1]} 26...
Qg4 {[%clk 0:01:04.7]} 27. Nh2 {[%clk 0:00:42.3]} 27... Qd7 {[%clk 0:00:58.3]}
28. Rf1 {[%clk 0:00:42.2]} 28... Bf6 {[%clk 0:00:53.9]} 29. Nhf3 {[%clk
0:00:26.9]} 29... Kg7 {[%clk 0:00:53.6]} 30. Rf2 {[%clk 0:00:17]} 30... Bxg5
{[%clk 0:00:42.4]} 31. Nxg5 {[%clk 0:00:16.2]} 31... Rxf2+ {[%clk 0:00:42.6]}
32. Kxf2 {[%clk 0:00:17.1]} 32... Rc8 {[%clk 0:00:37.5]} 33. Kg2 {[%clk
0:00:16.6]} 33... Rc7 {[%clk 0:00:36.1]} 34. Rb8 {[%clk 0:00:13.2]} 34... Qe7
{[%clk 0:00:22.7]} 35. Rxd8 {[%clk 0:00:12.3]} 35... Kh6 {[%clk 0:00:05.9]} 36.
Rh8+ {[%clk 0:00:11.3]} 1-0

[Event "*** SCC Grand Prix: Titled Tuesday Blitz"]
[Site "Chess.com"]
[Date "2020.08.11"]
[Round "5"]
[White "pavelalexandru07"]
[Black "rynos0411"]
[Result "1-0"]
[WhiteElo "2212"]
[BlackElo "2337"]
[TimeControl "180+1"]
[EndTime "10:55:33 PDT"]
[Termination "pavelalexandru07 won on time"]

1. e4 {[%clk 0:02:58.8]} 1... d6 {[%clk 0:02:59.2]} 2. d4 {[%clk 0:02:58.6]}
2... Nf6 {[%clk 0:02:59.5]} 3. Nc3 {[%clk 0:02:58.8]} 3... c6 {[%clk 0:03:00]}
4. Nf3 {[%clk 0:02:58.7]} 4... Qa5 {[%clk 0:03:00.2]} 5. Bd3 {[%clk 0:02:53.9]}
5... e5 {[%clk 0:02:56]} 6. O-O {[%clk 0:02:51]} 6... Be7 {[%clk 0:02:55.2]} 7.
a3 {[%clk 0:02:48.9]} 7... O-O {[%clk 0:02:52.2]} 8. b4 {[%clk 0:02:48.5]} 8...
Qc7 {[%clk 0:02:52.6]} 9. h3 {[%clk 0:02:44.4]} 9... Nbd7 {[%clk 0:02:44.3]} 10.
Bg5 {[%clk 0:02:43.9]} 10... a5 {[%clk 0:02:42.6]} 11. Rb1 {[%clk 0:02:43.2]}
11... Rd8 {[%clk 0:02:36.2]} 12. Ne2 {[%clk 0:02:35.1]} 12... Nf8 {[%clk
0:02:26.1]} 13. c4 {[%clk 0:02:31.8]} 13... h6 {[%clk 0:02:23.4]} 14. Bh4 {[%clk
0:02:31]} 14... Ng6 {[%clk 0:02:23.3]} 15. Bg3 {[%clk 0:02:30.5]} 15... Nh5
{[%clk 0:02:20.9]} 16. Bh2 {[%clk 0:02:30.2]} 16... axb4 {[%clk 0:02:11.7]} 17.
axb4 {[%clk 0:02:29.5]} 17... Nf6 {[%clk 0:01:19.7]} 18. Qb3 {[%clk 0:02:25.4]}
18... Bd7 {[%clk 0:01:13.4]} 19. Rfc1 {[%clk 0:02:23.7]} 19... Ra7 {[%clk
0:01:08.9]} 20. b5 {[%clk 0:01:47.6]} 20... cxb5 {[%clk 0:00:56.5]} 21. cxb5
{[%clk 0:01:46.6]} 21... Qb6 {[%clk 0:00:57]} 22. dxe5 {[%clk 0:01:42.9]} 22...
dxe5 {[%clk 0:00:57.9]} 23. Bc4 {[%clk 0:01:29.7]} 23... Be6 {[%clk 0:00:30.3]}
24. Bxe6 {[%clk 0:01:23.4]} 24... fxe6 {[%clk 0:00:31.2]} 25. Nxe5 {[%clk
0:01:09.4]} 25... Nxe5 {[%clk 0:00:26.3]} 26. Bxe5 {[%clk 0:01:09.5]} 26... Nxe4
{[%clk 0:00:26.7]} 27. Bd4 {[%clk 0:00:37.2]} 27... Rxd4 {[%clk 0:00:15.2]} 28.
Nxd4 {[%clk 0:00:37]} 28... Kf7 {[%clk 0:00:07.1]} 29. Qf3+ {[%clk 0:00:31.9]}
29... Nf6 {[%clk 0:00:07.1]} 30. Ne2 {[%clk 0:00:29.7]} 30... Ra3 {[%clk
0:00:06.6]} 31. Rb3 {[%clk 0:00:27.6]} 31... Rxb3 {[%clk 0:00:03.3]} 32. Qxb3
{[%clk 0:00:28.5]} 32... Qd6 {[%clk 0:00:03.3]} 33. Ng3 {[%clk 0:00:25.7]} 33...
g6 {[%clk 0:00:02.2]} 34. Re1 {[%clk 0:00:24.9]} 34... h5 {[%clk 0:00:01.9]} 35.
Qf3 {[%clk 0:00:16]} 35... Kg7 {[%clk 0:00:01.5]} 36. Qxb7 {[%clk 0:00:15.7]}
36... Nd5 {[%clk 0:00:01.7]} 37. Ne4 {[%clk 0:00:15.3]} 37... Qd8 {[%clk
0:00:01.3]} 38. Nc5 {[%clk 0:00:14.8]} 38... Kf8 {[%clk 0:00:01.5]} 39. Nxe6+
{[%clk 0:00:14.7]} 1-0

[Event "*** SCC Grand Prix: Titled Tuesday Blitz"]
[Site "Chess.com"]
[Date "2020.08.11"]
[Round "5"]
[White "AJSC02"]
[Black "ailime26"]
[Result "1-0"]
[WhiteElo "2261"]
[BlackElo "1899"]
[TimeControl "180+1"]
[EndTime "10:55:33 PDT"]
[Termination "AJSC02 won by checkmate"]

1. e4 {[%clk 0:03:00.9]} 1... c5 {[%clk 0:02:59.4]} 2. Nf3 {[%clk 0:03:00.9]}
2... Nc6 {[%clk 0:02:57.6]} 3. c3 {[%clk 0:03:00.8]} 3... e6 {[%clk 0:02:56.7]}
4. d4 {[%clk 0:03:00.5]} 4... d5 {[%clk 0:02:56.3]} 5. exd5 {[%clk 0:02:59.9]}
5... exd5 {[%clk 0:02:55.7]} 6. Bb5 {[%clk 0:03:00.1]} 6... Be7 {[%clk
0:02:54.9]} 7. O-O {[%clk 0:02:57.1]} 7... Nf6 {[%clk 0:02:55]} 8. dxc5 {[%clk
0:02:56.6]} 8... O-O {[%clk 0:02:54.3]} 9. Be3 {[%clk 0:02:54]} 9... a6 {[%clk
0:02:52.8]} 10. Bd3 {[%clk 0:02:48.9]} 10... Ng4 {[%clk 0:02:51.9]} 11. Bd4
{[%clk 0:02:43.9]} 11... Nf6 {[%clk 0:02:49]} 12. h3 {[%clk 0:02:39.6]} 12...
Ne4 {[%clk 0:02:37.6]} 13. Nbd2 {[%clk 0:02:30.2]} 13... Bf5 {[%clk 0:02:32.3]}
14. Qc2 {[%clk 0:02:20.6]} 14... Nxd2 {[%clk 0:02:14.3]} 15. Qxd2 {[%clk
0:02:20.1]} 15... Be4 {[%clk 0:02:05.9]} 16. Qe3 {[%clk 0:02:00.7]} 16... f5
{[%clk 0:02:01.6]} 17. Ne5 {[%clk 0:01:39.8]} 17... Nxe5 {[%clk 0:01:56.1]} 18.
Bxe5 {[%clk 0:01:39.5]} 18... Bxc5 {[%clk 0:01:54.2]} 19. Qxc5 {[%clk
0:01:32.4]} 19... Bxd3 {[%clk 0:01:53.7]} 20. Rfd1 {[%clk 0:01:28.4]} 20... Rc8
{[%clk 0:01:51.2]} 21. Qd4 {[%clk 0:01:22.3]} 21... Bc4 {[%clk 0:01:47.6]} 22.
Bxg7 {[%clk 0:01:18.5]} 22... Rf7 {[%clk 0:01:47.3]} 23. Be5 {[%clk 0:01:12.3]}
23... Qg5 {[%clk 0:01:39.1]} 24. b3 {[%clk 0:01:09.3]} 24... Bb5 {[%clk
0:01:38.9]} 25. Bf4 {[%clk 0:01:00.1]} 25... Qg6 {[%clk 0:01:37.5]} 26. Re1
{[%clk 0:00:53.7]} 26... Rg7 {[%clk 0:01:31.4]} 27. g3 {[%clk 0:00:50.3]} 27...
Rd7 {[%clk 0:01:29.4]} 28. Re5 {[%clk 0:00:47]} 28... Bc6 {[%clk 0:01:27.6]} 29.
Rae1 {[%clk 0:00:46.4]} 29... Qh5 {[%clk 0:01:24.5]} 30. Kh2 {[%clk 0:00:44.2]}
30... Qf7 {[%clk 0:01:21.5]} 31. Re6 {[%clk 0:00:40]} 31... Rf8 {[%clk
0:01:13.8]} 32. Bh6 {[%clk 0:00:38.8]} 32... Rc8 {[%clk 0:01:06.1]} 33. Rf6
{[%clk 0:00:37.9]} 33... Qh5 {[%clk 0:00:58.6]} 34. Re5 {[%clk 0:00:30]} 34...
Rf7 {[%clk 0:00:55.7]} 35. Rexf5 {[%clk 0:00:27.3]} 35... Qxh6 {[%clk
0:00:43.8]} 36. Rxf7 {[%clk 0:00:25.2]} 36... Re8 {[%clk 0:00:35.3]} 37. R7f6
{[%clk 0:00:24]} 37... Qg7 {[%clk 0:00:30.9]} 38. Rf4 {[%clk 0:00:17.1]} 38...
Re4 {[%clk 0:00:25.3]} 39. Rxe4 {[%clk 0:00:14.5]} 39... dxe4 {[%clk 0:00:25.2]}
40. Qd8+ {[%clk 0:00:14.3]} 40... Be8 {[%clk 0:00:22.3]} 41. Qxe8+ {[%clk
0:00:14.3]} 41... Qf8 {[%clk 0:00:21.9]} 42. Qxf8# {[%clk 0:00:14.3]} 1-0